bitfinex-derivatives/quotes_BTCF0:USTF0_20210102
["timestamp","ask_amount","ask_price","bid_price","bid_amount"]
[1609594750260,0.16398,31099.0,31093.0,0.00041391]
[1609594751159,0.11464,31110.0,31093.0,0.00041391]
[1609594751759,0.11464,31110.0,31093.0,0.03983996]
[1609594751960,0.11464,31110.0,31109.0,0.18043158]
[1609594752362,0.11464,31110.0,31084.0,0.11158]
[1609594752562,0.2792,31126.0,31084.0,0.11158]
[1609594752761,0.14247,31110.0,31084.0,0.11158]
[1609594752960,0.14247,31110.0,31045.0,0.38883175]
[1609594753363,0.14247,31110.0,31046.0,0.0394367]
[1609594753762,0.14247,31110.0,31046.0,0.2099467]
[1609594753964,0.14247,31110.0,31046.0,0.21036056]
[1609594754164,0.14247,31110.0,31047.0,0.03943658]
[1609594754363,0.0971,31109.0,31047.0,0.03985044]
[1609594755071,0.14247,31110.0,31047.0,0.03985044]
[1609594755866,0.14247,31110.0,31084.0,0.18043158]
[1609594756068,0.0974,31109.0,31084.0,0.18043158]
[1609594756267,0.0974,31109.0,31047.0,0.03985044]
[1609594756466,0.0974,31109.0,31085.0,0.03986234]
[1609594756669,0.14247,31110.0,31085.0,0.03986234]
[1609594756870,0.14247,31110.0,31047.0,0.03986245]
[1609594757169,0.14247,31110.0,31086.0,0.03986217]
[1609594757570,0.14247,31110.0,31048.0,0.03986352]
[1609594757772,1.0,31123.0,31087.0,0.00041399]
[1609594757971,1.0,31123.0,31046.0,0.17051]
[1609594757972,0.18043158,31088.0,31081.0,0.18043158]
[1609594758173,0.34884158,31088.0,31081.0,0.18043158]
[1609594758372,0.16841,31088.0,31081.0,0.18043158]
[1609594758573,0.16841,31088.0,31082.0,0.03986352]
[1609594759877,0.16841,31088.0,31087.0,0.18043158]
[1609594760477,0.16841,31088.0,31087.0,0.22028712]
[1609594761378,0.16841,31088.0,31087.0,0.03985554]
[1609594761980,0.34884158,31088.0,31086.0,0.18043158]
[1609594762280,0.34884158,31088.0,31087.0,0.03985735]
[1609594762882,0.34884158,31088.0,31047.0,0.03]
[1609594763384,0.34884158,31088.0,31048.0,0.03985855]
[1609594763985,0.16841,31088.0,31077.0,0.18043158]
[1609594764188,0.0974,31091.0,31077.0,0.18043158]
[1609594764387,0.0974,31091.0,31078.0,0.03986887]
[1609594764585,0.2934,31099.0,31078.0,0.03986887]
[1609594764786,1.0,31116.0,31103.0,1.7066]
[1609594764986,1.0,31116.0,31079.0,0.03987005]
[1609594765186,0.0953,31117.0,31104.0,0.00042004]
[1609594765386,5.0,31116.0,31104.0,0.00042004]
[1609594765587,5.42781,31116.0,31080.0,0.03986751]
[1609594765786,5.42781,31116.0,31105.0,0.00042002]
[1609594765986,0.18043158,31106.0,31083.0,0.18043158]
[1609594766186,0.18043158,31106.0,31081.0,0.0398674]
[1609594766388,0.33087158,31106.0,31063.0,0.03944837]
[1609594766587,0.33087158,31106.0,31062.0,0.0398683]
[1609594766787,0.33087158,31106.0,31064.0,0.03986856]
[1609594766989,0.0958,31105.0,31064.0,0.03986856]
[1609594767189,0.33087158,31106.0,31063.0,0.03986829]
[1609594767389,0.33087158,31106.0,31062.0,0.03986852]
[1609594767590,0.33087158,31106.0,31064.0,0.0398673]
[1609594767989,0.15044,31106.0,31088.0,0.18043158]
[1609594768190,0.0951,31105.0,31088.0,0.18043158]
[1609594768491,0.0951,31105.0,31089.0,0.03986138]
[1609594769192,0.15044,31106.0,31089.0,0.03986138]
[1609594770093,0.18043158,31090.0,31089.0,0.03986138]
[1609594770293,0.33717158,31090.0,31089.0,0.03986138]
[1609594771294,0.33717158,31090.0,31072.0,0.03944301]
[1609594771494,0.43387158,31090.0,31089.0,0.03944458]
[1609594771697,0.33717158,31090.0,31073.0,0.0398647]
[1609594771996,0.15674,31090.0,31089.0,0.03986508]
[1609594772200,0.15674,31090.0,31075.0,0.18043158]
[1609594772599,0.25434,31090.0,31089.0,0.03986738]
[1609594772810,0.15674,31090.0,31076.0,0.03986732]
[1609594773014,0.15674,31090.0,31089.0,0.03986647]
[1609594773409,0.15674,31090.0,31077.0,0.03986601]
[1609594773602,0.15674,31090.0,31076.0,0.03986409]
[1609594773800,0.25254,31090.0,31078.0,0.03986351]
[1609594773998,0.15674,31090.0,31089.0,0.18043158]
[1609594774699,0.15674,31090.0,31089.0,0.22029584]
[1609594775098,0.25174,31090.0,31089.0,0.22029584]
[1609594776000,0.43217158,31090.0,31089.0,0.22029584]
[1609594776400,0.33717158,31090.0,31089.0,0.22029584]
[1609594776799,0.33717158,31090.0,31078.0,0.15378]
[1609594776999,0.33717158,31090.0,31079.0,0.03944225]
[1609594777201,0.33717158,31090.0,31079.0,0.03986121]
[1609594777403,0.0969,31089.0,31079.0,0.03986121]
[1609594777803,0.33717158,31090.0,31079.0,0.03986121]
[1609594778004,0.18043158,31080.0,31079.0,0.03986121]
[1609594779004,0.17846704,31080.0,31079.0,0.03986121]
[1609594779204,0.17846704,31080.0,31078.0,0.03986406]
[1609594779604,0.17846704,31080.0,31044.0,1.6998513]
[1609594779605,0.17846704,31080.0,31045.0,0.1187569]
[1609594779805,0.17846704,31080.0,31079.0,0.03986578]
[1609594780007,0.17846704,31080.0,31072.0,0.18043158]
[1609594780205,0.17846704,31080.0,31078.0,0.14091]
[1609594780405,0.17846704,31080.0,31079.0,0.03986591]
[1609594780607,0.17846704,31080.0,31078.0,0.14091]
[1609594780807,0.17846704,31080.0,31079.0,0.03986657]
[1609594781408,1.17846704,31080.0,31079.0,0.03986657]
[1609594782510,1.27366704,31080.0,31079.0,0.03986657]
[1609594782909,1.17846704,31080.0,31079.0,0.03986657]
[1609594783315,0.17846704,31080.0,31079.0,0.03986657]
[1609594784811,0.17846704,31080.0,31072.0,0.03987034]
[1609594785016,0.27556704,31080.0,31072.0,0.03987034]
[1609594786114,0.18043158,31073.0,31072.0,0.03987034]
[1609594786313,0.0978,31079.0,31072.0,0.03987034]
[1609594786517,0.1205,31083.0,31072.0,0.03987034]
[1609594786716,0.60048574,31101.0,31072.0,0.03987034]
[1609594788016,0.60048574,31101.0,31100.0,0.18043158]
[1609594788619,0.60048574,31101.0,31100.0,0.22028664]
[1609594790126,0.78091732,31101.0,31100.0,0.22028664]
[1609594790321,0.78091732,31101.0,31100.0,0.03985506]
[1609594790822,0.78091732,31101.0,31091.0,0.03984773]
[1609594791723,0.78091732,31101.0,31090.0,0.15433]
[1609594792122,0.60048574,31101.0,31091.0,0.18043158]
[1609594792624,0.60048574,31101.0,31092.0,0.03985208]
[1609594793523,0.60048574,31101.0,31091.0,0.17043158]
[1609594794124,0.18043158,31092.0,31091.0,0.17043158]
[1609594794525,0.18043158,31092.0,31083.0,0.17181]
[1609594794725,0.18043158,31092.0,31091.0,0.03985115]
[1609594794926,0.17846786,31092.0,31091.0,0.03985115]
[1609594795126,0.17846786,31092.0,31084.0,0.03985093]
[1609594795325,0.17846786,31092.0,31091.0,0.03985195]
[1609594795526,0.18846786,31092.0,31085.0,0.03985212]
[1609594795925,0.18846786,31092.0,31072.0,0.03985179]
[1609594796127,0.01,31092.0,31086.0,0.0398527]
[1609594796328,0.01,31092.0,31080.0,0.14061]
[1609594796725,0.01,31092.0,31087.0,0.0398571]
[1609594796924,0.01,31092.0,31081.0,0.03985761]
[1609594797126,0.01,31092.0,31088.0,0.03985715]
[1609594797525,0.01,31092.0,31082.0,0.03985944]
[1609594797727,0.01,31092.0,31089.0,0.03985964]
[1609594797926,0.01,31092.0,31083.0,0.03985922]
[1609594798127,0.18043158,31084.0,31083.0,0.03985922]
[1609594798325,0.18043158,31084.0,31075.0,0.18043158]
[1609594798726,0.18043158,31084.0,31076.0,0.0398607]
[1609594799127,0.16892,31089.0,31076.0,0.0398607]
[1609594799527,0.01,31092.0,31072.0,0.03985262]
[1609594799927,0.01,31092.0,31077.0,0.0398505]
[1609594800127,0.01,31092.0,31091.0,0.18043158]
[1609594800727,0.01,31092.0,31091.0,0.22027779]
[1609594802030,0.15044,31106.0,31091.0,0.22027779]
[1609594802230,0.18043158,31107.0,31105.0,0.18043158]
[1609594802831,0.18043158,31107.0,31106.0,0.00041877]
[1609594803032,0.18043158,31107.0,31106.0,0.03984211]
[1609594803232,0.18043158,31107.0,31106.0,0.03942334]
[1609594803430,0.18043158,31107.0,31106.0,0.00041875]
[1609594803631,0.18043158,31107.0,31106.0,0.04025749]
[1609594804131,0.18043158,31107.0,31106.0,0.00083747]
[1609594805532,0.27743158,31107.0,31106.0,0.00083747]
[1609594805731,0.18043158,31107.0,31106.0,0.00083747]
[1609594806737,0.27613158,31107.0,31106.0,0.00083747]
[1609594807036,0.0957,31107.0,31106.0,0.00083747]
[1609594807836,0.0957,31107.0,31106.0,0.16756747]
[1609594808035,0.01967296,31129.0,31106.0,0.16756747]
[1609594808235,0.17927296,31129.0,31127.0,0.18043158]
[1609594808636,0.17927296,31129.0,31128.0,0.00041848]
[1609594809036,0.02497296,31129.0,31128.0,0.00041848]
[1609594809237,0.0973,31129.0,31128.0,0.00041848]
[1609594809637,0.0973,31129.0,31128.0,0.03980773]
[1609594809837,0.58362545,31140.0,31128.0,0.03980773]
[1609594810236,0.58362545,31140.0,31139.0,0.18043158]
[1609594810439,0.05955592,31154.0,31139.0,0.18239232]
[1609594810637,0.05955592,31154.0,31139.0,0.18043158]
[1609594810836,0.05955592,31154.0,31140.0,0.00041823]
[1609594811037,0.15475592,31154.0,31140.0,0.13516823]
[1609594811637,0.05955592,31154.0,31141.0,0.00041816]
[1609594812138,0.05955592,31154.0,31141.0,0.0397671]
[1609594812338,0.05955592,31154.0,31153.0,0.18043158]
[1609594812838,0.27759288,31160.0,31153.0,0.18084955]
[1609594813639,0.27759288,31160.0,31154.0,0.00041791]
[1609594813938,0.0965,31159.0,31154.0,0.00041791]
[1609594814238,0.0965,31159.0,31158.0,0.18043158]
[1609594814438,0.27759288,31160.0,31158.0,0.18043158]
[1609594814639,0.27759288,31160.0,31158.0,0.18084943]
[1609594814839,0.27759288,31160.0,31158.0,0.18043158]
[1609594815541,0.27759288,31160.0,31159.0,0.00041776]
[1609594815945,0.85283044,31164.0,31159.0,0.00041776]
[1609594816145,0.96615835,31191.0,31159.0,0.00041776]
[1609594816346,0.96615835,31191.0,31163.0,0.18043158]
[1609594816744,0.96615835,31191.0,31164.0,0.00041771]
[1609594817145,0.0962,31194.0,31164.0,0.00041771]
[1609594817546,0.11323,31194.0,31176.0,0.00041769]
[1609594817746,0.2904,31243.0,31176.0,0.00041769]
[1609594817945,0.0963,31198.0,31170.0,1.62773258]
[1609594818147,0.0463,31198.0,31170.0,1.62773258]
[1609594818345,0.17039,31198.0,31197.0,0.18043158]
[1609594818546,0.12409,31198.0,31197.0,0.18043158]
[1609594818748,0.22129,31198.0,31197.0,0.18084922]
[1609594819149,0.18043158,31212.0,31197.0,0.18084922]
[1609594819750,0.0954,31198.0,31197.0,0.18043158]
[1609594819952,0.0954,31198.0,31184.0,0.10844]
[1609594820157,0.64425,31200.0,31184.0,0.10844]
[1609594820362,0.18043158,31185.0,31184.0,0.10844]
[1609594820557,0.18043158,31185.0,31174.0,0.15689]
[1609594821152,0.18043158,31185.0,31166.0,1.62031401]
[1609594821364,1.0,31183.0,31166.0,1.62031401]
[1609594821654,1.0,31183.0,31167.0,0.0004178]
[1609594822055,0.9980415,31183.0,31167.0,0.0004178]
[1609594822257,0.9980415,31183.0,31171.0,0.18043158]
[1609594822456,0.9980415,31183.0,31164.0,0.0004178]
[1609594822657,0.15114,31187.0,31163.0,0.13282]
[1609594822859,0.15114,31187.0,31149.0,1.6265411]
[1609594823058,0.15114,31187.0,31164.0,0.0004178]
[1609594823458,0.15114,31187.0,31157.0,0.00041785]
[1609594824260,0.15114,31187.0,31163.0,0.18043158]
[1609594824660,0.15114,31187.0,31175.0,2.0]
[1609594825662,1.0,31190.0,31175.0,2.0]
[1609594826262,1.0,31190.0,31189.0,0.18043158]
[1609594826462,0.18043158,31196.0,31189.0,0.18043158]
[1609594827263,0.26104159,31197.0,31175.0,2.0]
[1609594828265,0.26104159,31197.0,31190.0,0.18043158]
[1609594828467,0.26104159,31197.0,31175.0,2.0]
[1609594829368,0.26104159,31197.0,31176.0,0.00041601]
[1609594830270,0.26104159,31197.0,31196.0,0.18043158]
[1609594830670,0.26104159,31197.0,31196.0,0.18084753]
[1609594831372,0.26104159,31197.0,31175.0,2.0]
[1609594831772,0.26104159,31197.0,31176.0,0.00041602]
[1609594832372,0.26104159,31197.0,31187.0,0.18043158]
[1609594832573,0.26104159,31197.0,31188.0,0.00041602]
[1609594833778,0.25908364,31197.0,31188.0,0.00041602]
[1609594834277,0.25908364,31197.0,31196.0,0.18043158]
[1609594834776,0.25908364,31197.0,31196.0,0.18084755]
[1609594834976,0.25908364,31197.0,31196.0,0.00041597]
[1609594835376,0.25908364,31197.0,31179.0,0.03973197]
[1609594835577,0.25908364,31197.0,31196.0,0.00041597]
[1609594835779,0.25908364,31197.0,31180.0,0.00041597]
[1609594836079,0.25908364,31197.0,31196.0,0.00041597]
[1609594836379,0.25908364,31197.0,31196.0,0.18043158]
[1609594836580,0.25908364,31197.0,31196.0,0.18084753]
[1609594836981,0.25908364,31197.0,31196.0,1.18084753]
[1609594838681,5.0,31242.0,31196.0,1.18084753]
[1609594838880,4.777113,31242.0,31196.0,1.18084753]
[1609594839081,1.0,31223.0,31196.0,2.18084753]
[1609594839282,1.14591,31223.0,31197.0,0.00041588]
[1609594840383,1.14591,31223.0,31207.0,0.18043158]
[1609594840583,1.14591,31223.0,31197.0,0.03972196]
[1609594841183,0.14591,31223.0,31197.0,0.03972196]
[1609594842285,0.14591,31223.0,31212.0,0.18043158]
[1609594842888,0.14591,31223.0,31213.0,0.00041588]
[1609594843088,0.14591,31223.0,31218.0,1.0]
[1609594843589,0.14591,31223.0,31219.0,0.03971965]
[1609594844291,0.18043158,31220.0,31219.0,0.22015123]
[1609594844489,0.32173158,31220.0,31219.0,0.22015123]
[1609594844991,0.1413,31220.0,31219.0,0.22015123]
[1609594846996,0.1413,31220.0,31219.0,0.03971965]
[1609594847396,0.1413,31220.0,31197.0,0.03971125]
[1609594847596,0.1413,31220.0,31219.0,0.03971206]
[1609594847897,0.1413,31220.0,31198.0,0.03971486]
[1609594848298,0.1413,31220.0,31219.0,0.0004158]
[1609594848499,0.32173158,31220.0,31199.0,0.03971926]
[1609594848699,0.32173158,31220.0,31219.0,0.00041585]
[1609594849099,0.32173158,31220.0,31200.0,0.03972094]
[1609594849301,0.1413,31220.0,31199.0,0.03973309]
[1609594849501,0.1413,31220.0,31201.0,0.00041597]
[1609594849700,0.11466,31220.0,31201.0,0.00041597]
[1609594849899,0.11466,31220.0,31200.0,0.03972899]
[1609594850100,0.11466,31220.0,31198.0,0.03972183]
[1609594850502,0.11466,31220.0,31219.0,0.18043158]
[1609594850904,0.11466,31220.0,31219.0,0.22013683]
[1609594851302,0.11466,31220.0,31219.0,0.18084728]
[1609594852103,0.56389895,31277.0,31219.0,0.18084728]
[1609594852306,0.56383778,31283.0,31219.0,0.18084728]
[1609594852504,0.18043158,31250.0,31248.0,0.18043158]
[1609594852905,0.18043158,31250.0,31222.0,4.5213]
[1609594853104,1.0,31272.0,31249.0,1.0]
[1609594853705,1.0,31272.0,31250.0,0.00041554]
[1609594854406,0.18043158,31251.0,31250.0,0.00041554]
[1609594854605,1.0,31272.0,31250.0,0.00041554]
[1609594855105,1.0,31266.0,31250.0,1.00041554]
[1609594855304,1.11367,31266.0,31250.0,1.00041554]
[1609594855506,1.11367,31266.0,31251.0,0.00041546]
[1609594856406,1.11367,31266.0,31265.0,0.18043158]
[1609594857106,0.11367,31266.0,31265.0,1.18043158]
[1609594857307,0.18043158,31269.0,31265.0,1.00041532]
[1609594857507,1.0,31286.0,31265.0,1.00041532]
[1609594857907,1.0,31286.0,31266.0,0.0004153]
[1609594858508,1.0,31286.0,31285.0,0.18043158]
[1609594859109,0.04161785,31288.0,31285.0,0.18084678]
[1609594859510,0.04161785,31288.0,31286.0,0.00041515]
[1609594860309,0.56329594,31331.0,31286.0,0.00041515]
[1609594860510,0.56329594,31331.0,31323.0,0.18043158]
[1609594860710,0.56329594,31331.0,31286.0,0.00041515]
[1609594860909,0.56329594,31331.0,31288.0,4.3486]
[1609594861210,0.69649594,31331.0,31274.0,0.03963194]
[1609594861409,0.69649594,31331.0,31288.0,0.00041491]
[1609594861809,0.69649594,31331.0,31280.0,0.03962192]
[1609594862010,0.1332,31331.0,31280.0,0.00041485]
[1609594862213,0.1332,31331.0,31281.0,0.0004148]
[1609594862410,0.1332,31331.0,31324.0,0.18043158]
[1609594862610,0.1332,31331.0,31280.0,0.03961527]
[1609594863012,0.1332,31331.0,31299.0,0.0203]
[1609594863712,0.1332,31331.0,31300.0,0.0004145]
[1609594864518,0.18043158,31301.0,31300.0,0.0004145]
[1609594864716,0.13977,31301.0,31300.0,0.0004145]
[1609594864918,0.13977,31301.0,31299.0,0.0203]
[1609594866518,0.18043158,31300.0,31299.0,0.0203]
[1609594867720,0.18043158,31300.0,31261.0,1.68914904]
[1609594868127,0.18043158,31300.0,31262.0,0.00041475]
[1609594868523,0.13977,31301.0,31262.0,0.00041475]
[1609594868928,0.13977,31301.0,31272.0,0.00041485]
[1609594869326,0.13977,31301.0,28864.0,0.04222547]
[1609594869327,0.13977,31301.0,31262.0,0.00041491]
[1609594869722,0.16573,31301.0,31247.0,0.00041494]
[1609594870620,0.16573,31301.0,31247.0,0.03962098]
[1609594871622,0.14573,31301.0,31247.0,0.00041494]
[1609594872023,0.14573,31301.0,31248.0,0.00041487]
[1609594872222,0.14573,31301.0,31247.0,0.00041487]
[1609594872426,0.14573,31301.0,31247.0,0.0396194]
[1609594872623,0.14573,31301.0,31288.0,0.18043158]
[1609594873024,0.14573,31301.0,31289.0,0.00041475]
[1609594873424,1.0,31299.0,31289.0,0.00041475]
[1609594874324,1.0,31299.0,31271.0,0.15688]
[1609594874524,0.18043158,31280.0,31278.0,0.18043158]
[1609594874725,0.18043158,31280.0,31272.0,0.00041479]
[1609594875527,0.29971158,31280.0,31272.0,0.00041479]
[1609594876027,0.29971158,31280.0,31267.0,0.00041485]
[1609594876527,0.18043158,31274.0,31267.0,0.18084643]
[1609594876927,0.18043158,31274.0,31268.0,0.00041489]
[1609594877328,0.11928,31280.0,31268.0,0.00041489]
[1609594877531,1.0,31269.0,31266.0,0.94885158]
[1609594877727,0.1276,31269.0,31267.0,0.00041506]
[1609594877927,0.1276,31269.0,31265.0,2.0]
[1609594878529,0.18043158,31266.0,31265.0,1.07518]
[1609594879330,0.18043158,31266.0,31265.0,0.07518]
[1609594879731,6.18043158,31266.0,31265.0,0.07518]
[1609594881232,6.18043158,31266.0,31230.0,0.2925]
[1609594881632,0.04473158,31266.0,31231.0,0.00041526]
[1609594881832,0.04473158,31266.0,31231.0,0.13142526]
[1609594882434,0.04473158,31266.0,31232.0,0.00041514]
[1609594882635,0.12564603,31269.0,31253.0,0.18043158]
[1609594882935,0.2948,31298.0,31253.0,0.18043158]
[1609594883139,0.2948,31298.0,31254.0,0.00041506]
[1609594884540,0.18043158,31262.0,31253.0,0.18043158]
[1609594884940,0.18043158,31262.0,31189.0,1.33082786]
[1609594885141,0.18043158,31262.0,31248.0,2.0]
[1609594885342,0.2873,31261.0,31254.0,0.00042287]
[1609594885543,0.2873,31261.0,31249.0,0.0004229]
[1609594885942,0.2873,31261.0,31187.0,0.0396569]
[1609594886143,0.2873,31261.0,31191.0,0.03965963]
[1609594886343,0.2873,31261.0,31187.0,0.03965971]
[1609594886743,0.2873,31261.0,31175.0,0.03965927]
[1609594886943,0.2873,31261.0,31188.0,0.03966724]
[1609594887143,0.2873,31261.0,31176.0,0.03967183]
[1609594887543,0.2873,31261.0,31189.0,0.03967444]
[1609594887743,0.2873,31261.0,31177.0,0.0396762]
[1609594887944,0.2873,31261.0,31190.0,0.03967616]
[1609594888246,0.2873,31261.0,31178.0,0.03967549]
[1609594888445,0.2873,31261.0,31191.0,0.03967326]
[1609594888645,0.2873,31261.0,31229.0,0.18043158]
[1609594888845,1.0,31260.0,31179.0,0.03967129]
[1609594889045,1.0,31260.0,31175.0,0.03967467]
[1609594889246,1.0,31260.0,31180.0,0.03967785]
[1609594889646,1.0,31260.0,31176.0,0.03968358]
[1609594889846,1.0,31260.0,31181.0,0.03968312]
[1609594890047,1.0,31260.0,31177.0,0.03968762]
[1609594890449,1.0,31260.0,31172.0,1.0]
[1609594890450,1.0,31260.0,31182.0,0.0396939]
[1609594890650,1.0,31260.0,31202.0,0.18043158]
[1609594890849,1.0,31260.0,31203.0,0.00042334]
[1609594891250,1.0,31256.0,31203.0,0.00042334]
[1609594891449,1.0,31255.0,31175.0,0.03969484]
[1609594891649,1.11489,31255.0,31175.0,0.03969484]
[1609594892248,0.11489,31255.0,31175.0,0.03969484]
[1609594892449,0.1244893,31255.0,31175.0,0.03969484]
[1609594892649,0.6237,31253.0,31175.0,0.03969484]
[1609594893050,1.0,31252.0,31175.0,0.03969484]
[1609594893249,1.0,31245.0,31175.0,0.03969484]
[1609594893451,1.1726,31244.0,31175.0,0.03969484]
[1609594894350,5.003,31240.0,31175.0,0.03969484]
[1609594894553,1.0,31239.0,31175.0,0.03969484]
[1609594895452,5.003,31240.0,31175.0,0.03969484]
[1609594895652,1.0,31243.0,31175.0,0.03969484]
[1609594895852,0.1726,31244.0,31175.0,0.03969484]
[1609594896754,0.00962019,31250.0,31234.0,0.18043158]
[1609594896953,0.00962019,31250.0,31145.0,2.08714454]
[1609594897153,0.00962019,31250.0,31145.0,1.30980159]
[1609594897353,0.00962019,31250.0,31235.0,0.0004231]
[1609594898355,0.00962019,31250.0,31235.0,0.03965602]
[1609594899257,1.0,31242.0,31235.0,0.0004231]
[1609594899457,2.0,31242.0,31236.0,0.00042301]
[1609594899656,2.0,31242.0,31227.0,1.0]
[1609594900257,2.15863,31242.0,31227.0,1.0]
[1609594901061,0.18043158,31228.0,31211.0,5.0]
[1609594901261,1.0,31227.0,31199.0,0.18043158]
[1609594901460,1.0,31227.0,31212.0,0.00042332]
[1609594901860,1.0,31227.0,31200.0,0.03970059]
[1609594902061,0.2723,31226.0,31200.0,0.03970059]
[1609594902260,0.2723,31226.0,31213.0,0.00042344]
[1609594902459,0.2723,31226.0,31201.0,0.0397025]
[1609594902661,0.2723,31226.0,31214.0,0.00042341]
[1609594902961,0.2723,31226.0,31202.0,0.03969597]
[1609594903162,0.18043158,31215.0,31213.0,0.18043158]
[1609594903362,0.18043158,31215.0,31181.0,0.03969485]
[1609594903563,0.18043158,31215.0,31214.0,0.03969615]
[1609594903764,0.18043158,31215.0,31167.0,0.03969334]
[1609594904162,0.18043158,31215.0,31214.0,0.03969305]
[1609594904362,1.0,31215.0,31168.0,0.03969443]
[1609594904562,1.0,31223.0,31214.0,0.0396964]
[1609594904763,1.0,31223.0,31214.0,0.03927303]
[1609594904966,1.0,31223.0,31165.0,0.11781754]
[1609594905164,1.0,31223.0,31215.0,0.03970101]
[1609594905365,1.0,31222.0,31166.0,0.03970007]
[1609594905764,1.0,31225.0,31216.0,0.00042343]
[1609594905965,0.13942,31228.0,31167.0,0.03970384]
[1609594906167,0.13942,31228.0,31217.0,0.00042345]
[1609594906466,0.2858,31237.0,31168.0,0.03970217]
[1609594906674,0.2858,31237.0,31218.0,0.0004224]
[1609594906875,1.0,31236.0,31218.0,0.0004224]
[1609594907079,1.0,31236.0,31211.0,0.18043158]
[1609594907080,0.18043158,31219.0,31211.0,0.18043158]
[1609594907275,0.18043158,31219.0,31168.0,0.03927674]
[1609594907475,0.18043158,31219.0,31159.0,0.11824814]
[1609594907872,0.18043158,31219.0,31169.0,0.03969291]
[1609594908073,0.18043158,31219.0,31160.0,0.03969151]
[1609594908285,0.14868,31227.0,31170.0,0.03968971]
[1609594908489,0.2858,31237.0,31170.0,0.03968971]
[1609594908682,0.2858,31237.0,31161.0,0.03968643]
[1609594908880,0.2858,31237.0,31171.0,0.03968363]
[1609594909070,0.2858,31237.0,31236.0,0.18043158]
[1609594909271,0.2858,31237.0,31179.0,1.0]
[1609594909871,0.2858,31237.0,31180.0,0.03967507]
[1609594911075,0.18043158,31223.0,31221.0,0.18043158]
[1609594911277,0.18043158,31223.0,31180.0,0.03967507]
[1609594911477,0.18043158,31223.0,31222.0,0.03967182]
[1609594911877,0.18043158,31223.0,31178.0,0.03967376]
[1609594912077,0.18043158,31223.0,31222.0,0.03967903]
[1609594912277,0.18043158,31223.0,31222.0,0.03925684]
[1609594912478,0.18043158,31223.0,31179.0,0.03968101]
[1609594912679,0.18043158,31223.0,31222.0,0.0396859]
[1609594912879,0.18043158,31223.0,31180.0,0.03968443]
[1609594913080,0.18043158,31223.0,31180.0,1.77652625]
[1609594913279,1.18043158,31210.0,31206.0,0.18043158]
[1609594913479,1.18043158,31210.0,31195.0,1.0]
[1609594913680,1.18043158,31210.0,31207.0,0.03968993]
[1609594913881,1.18043158,31210.0,31196.0,0.03969177]
[1609594914279,1.18043158,31210.0,31208.0,0.03969094]
[1609594914479,1.0,31210.0,31197.0,0.03969025]
[1609594914679,1.0,31210.0,31196.0,0.03968756]
[1609594914979,1.0,31210.0,31198.0,0.03968301]
[1609594915179,1.0,31210.0,31209.0,0.18043158]
[1609594915380,0.18043158,31216.0,31209.0,0.18043158]
[1609594915580,0.18043158,31216.0,31210.0,0.01]
[1609594915781,0.00970375,31241.0,31210.0,0.01]
[1609594915980,0.00970375,31241.0,31211.0,0.03967542]
[1609594917183,1.0,31244.0,31222.0,0.18043158]
[1609594917382,1.0,31244.0,31211.0,0.03967542]
[1609594917683,0.13055,31253.0,31211.0,0.03967542]
[1609594918283,1.2858,31237.0,31211.0,0.03967542]
[1609594918482,1.2658,31237.0,31211.0,0.03967542]
[1609594919185,0.18043158,31212.0,31211.0,0.03967542]
[1609594922187,0.786,31215.0,31211.0,0.03967542]
[1609594922587,1.0,31236.0,31211.0,0.03967542]
[1609594923292,0.18043158,31234.0,31231.0,0.18043158]
[1609594923499,1.0,31236.0,31211.0,0.03967542]
[1609594925191,1.0,31236.0,31235.0,0.18043158]
[1609594925792,1.0,31236.0,31235.0,0.22009248]
[1609594926191,0.00972875,31274.0,31235.0,0.22009248]
[1609594926593,0.00972875,31274.0,31236.0,0.03965586]
[1609594927194,1.0,31280.0,31273.0,0.18043158]
[1609594927195,0.00972002,31277.0,31273.0,0.18043158]
[1609594927594,0.00972002,31277.0,31236.0,0.11810678]
[1609594928196,1.0,31280.0,31239.0,1.59957881]
[1609594928598,0.11138,31308.0,31239.0,1.59957881]
[1609594928798,0.2707,31307.0,31244.0,1.59538907]
[1609594929196,0.18043158,31276.0,31272.0,0.18043158]
[1609594929396,0.18043158,31276.0,31272.0,0.15043158]
[1609594929597,0.18043158,31276.0,31245.0,0.11805527]
[1609594929798,0.18043158,31276.0,31273.0,0.03963259]
[1609594929997,0.18043158,31276.0,31246.0,0.03963338]
[1609594930397,0.18043158,31276.0,31243.0,1.58502951]
[1609594930798,0.18043158,31276.0,31237.0,1.91403541]
[1609594930799,0.18043158,31276.0,31244.0,0.11805594]
[1609594931198,1.2707,31307.0,31273.0,0.18043158]
[1609594931398,0.2707,31307.0,31273.0,0.18043158]
[1609594931599,0.2707,31307.0,31274.0,0.0396311]
[1609594932201,1.2707,31307.0,31274.0,0.0396311]
[1609594932399,0.01,31245.0,31238.0,0.07842374]
[1609594932800,0.01,31245.0,31238.0,0.11805491]
[1609594933000,4.3851,31296.0,31238.0,0.11805491]
[1609594933200,4.3851,31296.0,31275.0,0.18043158]
[1609594933399,1.0,31296.0,31238.0,0.11805491]
[1609594934399,1.0,31295.0,31238.0,0.11805491]
[1609594935200,0.2846,31294.0,31261.0,0.18043158]
[1609594935399,1.0,31293.0,31238.0,1.86215357]
[1609594935600,1.0,31293.0,31262.0,0.03963937]
[1609594935900,1.0,31293.0,31239.0,0.0784362]
[1609594935901,0.2846,31294.0,31239.0,0.1180733]
[1609594936503,1.0,31276.0,31261.0,1.0]
[1609594937004,1.0,31276.0,31262.0,0.03963583]
[1609594937404,0.18043158,31263.0,31262.0,0.22006741]
[1609594937804,0.18043158,31263.0,31262.0,0.03963583]
[1609594938004,2.0,31276.0,31262.0,0.03963583]
[1609594938204,2.0,31276.0,31245.0,5.0]
[1609594938404,6.0,31263.0,31231.0,1.7485039]
[1609594938605,6.0,31263.0,31246.0,0.03965271]
[1609594938805,6.0,31263.0,31232.0,0.11812523]
[1609594939206,6.0,31263.0,31247.0,0.039656]
[1609594939406,6.0,31263.0,31240.0,0.18043158]
[1609594939607,6.0,31263.0,31241.0,0.03965456]
[1609594940506,1.0,31270.0,31241.0,0.03965456]
[1609594941307,1.0,31270.0,31244.0,0.18043158]
[1609594941706,0.0148,31262.0,31244.0,0.18043158]
[1609594941907,0.0148,31262.0,31245.0,0.03965215]
[1609594942107,0.0148,31262.0,31245.0,0.00042141]
[1609594942310,1.0148,31262.0,31246.0,0.0004215]